bitfinex/quotes_SOLUSD_20250819
["timestamp","ask_amount","ask_price","bid_price","bid_amount"]
[1755614871503,45.12,179.23,179.18,17.45867597]
[1755614871705,45.79,179.23,179.18,17.45867597]
[1755614872010,63.24867597,179.23,179.17,17.45867597]
[1755614873012,17.45867597,179.22,179.17,17.45867597]
[1755614873199,18.12867597,179.21,179.16,17.51867597]
[1755614873405,62.57867597,179.23,179.17,17.45867597]
[1755614873610,0.67,179.25,179.19,17.45867597]
[1755614873901,45.02,179.24,179.2,17.45867597]
[1755614874097,45.02,179.24,179.21,17.45867597]
[1755614874688,45.02,179.24,179.17,13.59559401]
[1755614874893,45.02,179.24,179.22,17.45867597]
[1755614875103,45.69,179.24,179.21,17.45867597]
[1755614876094,45.02,179.24,179.21,17.45867597]
[1755614876295,45.02,179.24,179.22,17.45867597]
[1755614876475,45.02,179.24,179.23,17.45867597]
[1755614876674,0.03,179.29,179.23,14.22748662]
[1755614876974,45.03,179.29,179.26,17.45867597]
[1755614877187,45.03,179.29,179.27,17.45867597]
[1755614877604,0.67,179.28,179.19,13.59559401]
[1755614877771,0.67,179.28,179.24,17.45867597]
[1755614877977,0.67,179.28,179.19,14.27559401]
[1755614878174,0.67,179.28,179.19,0.06]
[1755614878409,17.45867597,179.27,179.21,17.45867597]
[1755614878586,18.12867597,179.28,179.22,17.45867597]
[1755614879110,17.45867597,179.27,179.21,17.45867597]
[1755614879803,17.45867597,179.27,179.19,0.06]
[1755614879988,17.45867597,179.25,179.2,17.45867597]
[1755614880191,17.45867597,179.25,179.19,0.06]
[1755614880192,17.45867597,179.24,179.19,0.06]
[1755614880525,45.0,179.25,179.21,17.45867597]
[1755614880708,45.0,179.26,179.23,17.45867597]
[1755614881082,45.0,179.26,179.22,17.45867597]
[1755614881416,0.03,179.29,179.25,17.45867597]
[1755614881573,0.7,179.29,179.24,17.45867597]
[1755614881779,26.0,179.27,179.19,0.06]
[1755614882022,26.0,179.18,179.17,0.06]
[1755614882175,26.0,179.18,179.15,0.06]
[1755614882176,43.45867597,179.17,179.15,0.06]
[1755614882517,43.45867597,179.17,179.08,0.06]
[1755614882518,44.12867597,179.17,179.08,0.06]
[1755614882806,63.19867597,179.18,179.08,0.06]
[1755614882807,17.45867597,179.13,179.08,0.06]
[1755614883022,63.33867597,179.13,179.08,0.06]
[1755614883313,64.01867597,179.13,179.08,0.06]
[1755614883476,26.0,179.11,179.08,0.06]
[1755614883674,43.45867597,179.11,179.08,0.06]
[1755614883908,89.39867597,179.11,179.08,0.06]
[1755614884110,13.59559401,179.1,179.08,0.06]
[1755614884323,31.05426998,179.09,179.06,0.06]
[1755614884524,26.0,179.05,179.04,0.06]
[1755614884704,89.37867597,179.05,179.04,0.06]
[1755614884894,45.9,179.05,179.04,0.06]
[1755614885094,63.35867597,179.05,179.04,0.06]
[1755614885303,0.68,179.08,179.04,0.06]
[1755614885304,26.0,179.11,179.04,0.06]
[1755614885525,45.88,179.1,179.04,0.06]
[1755614885715,17.45867597,179.06,179.04,0.06]
[1755614885920,63.33867597,179.05,179.04,0.06]
[1755614886118,17.45867597,179.1,179.04,17.51867597]
[1755614886304,45.88,179.07,179.04,0.74]
[1755614886501,45.88,179.07,179.06,17.45867597]
[1755614886808,45.84,179.1,179.06,18.13867597]
[1755614887010,45.84,179.12,179.09,17.45867597]
[1755614887207,17.45867597,179.17,179.11,17.45867597]
[1755614887528,45.82,179.16,179.12,17.45867597]
[1755614887829,45.82,179.16,179.12,0.68]
[1755614888054,45.82,179.16,179.14,17.45867597]
[1755614888220,45.84,179.18,179.15,18.13867597]
[1755614888407,45.84,179.18,179.04,15.64527456]
[1755614888408,17.45867597,179.16,179.06,0.68]
[1755614888607,17.45867597,179.12,179.07,17.45867597]
[1755614888813,0.68,179.17,179.07,18.13867597]
[1755614888814,63.25867597,179.13,179.07,18.13867597]
[1755614889125,45.8,179.12,179.08,17.45867597]
[1755614889331,45.78,179.13,179.08,18.13867597]
[1755614889525,45.78,179.13,179.11,17.45867597]
[1755614889826,45.78,179.13,179.1,17.45867597]
[1755614890138,17.45867597,179.11,179.05,14.27559401]
[1755614890497,17.45867597,179.11,179.06,17.45867597]
[1755614890713,17.45867597,179.09,179.04,17.51867597]
[1755614890915,17.45867597,179.11,179.05,18.13867597]
[1755614891509,17.45867597,179.1,179.05,17.45867597]
[1755614891729,26.0,179.17,179.04,0.06]
[1755614891730,17.45867597,179.08,179.04,0.06]
[1755614891932,63.13867597,179.07,179.04,0.06]
[1755614892131,63.81867597,179.07,179.04,0.06]
[1755614892635,17.45867597,179.05,179.04,0.06]
[1755614893104,18.13867597,179.05,179.04,0.06]
[1755614894527,45.68,179.07,179.04,0.06]
[1755614894837,43.45867597,179.05,179.04,0.06]
[1755614895737,0.68,179.08,179.04,0.06]
[1755614895903,45.58,179.06,179.04,0.06]
[1755614896100,45.52,179.07,179.04,0.06]
[1755614896308,62.97867597,179.07,179.04,0.06]
[1755614897246,43.45867597,179.05,179.04,0.06]
[1755614897609,44.13867597,179.05,179.04,0.06]
[1755614898718,47.69975604,179.05,179.04,0.06]
[1755614899412,30.24108007,179.05,179.04,0.06]
[1755614899609,74.98108007,179.05,179.04,0.06]
[1755614899814,92.43975604,179.05,179.04,0.06]
[1755614900111,62.87867597,179.05,179.04,0.06]
[1755614900321,63.55867597,179.05,179.04,0.06]
[1755614900554,67.1150823,179.05,179.04,0.06]
[1755614902610,88.87867597,179.05,179.04,0.06]
[1755614903028,89.55867597,179.05,179.04,0.06]
[1755614903227,10.0,179.11,179.04,0.06]
[1755614903228,4.49479268,179.11,179.04,0.06]
[1755614903427,17.45867597,179.07,179.04,0.06]
[1755614903630,17.45867597,179.05,179.04,0.06]
[1755614903818,62.87867597,179.05,179.04,0.06]
[1755614904019,45.42,179.05,179.04,0.06]
[1755614904240,62.87867597,179.05,179.04,0.06]
[1755614904844,63.55867597,179.05,179.04,0.06]
[1755614905410,62.87867597,179.05,179.04,0.06]
[1755614905849,67.10339503,179.05,179.04,0.06]
[1755614906216,67.10339503,179.05,179.02,0.06]
[1755614906217,26.0,179.03,179.02,0.06]
[1755614906530,106.01898904,179.03,179.0,0.06]
[1755614906722,17.45867597,179.01,179.0,0.06]
[1755614906927,80.33735194,179.01,179.0,0.06]
[1755614907133,67.10183794,179.01,179.0,0.06]
[1755614908049,71.82602674,179.01,179.0,0.06]
[1755614908249,67.10183794,179.01,179.0,0.06]
[1755614908419,89.14123494,179.01,179.0,0.06]
[1755614908615,71.68255897,179.01,179.0,0.06]
[1755614908850,63.55867597,179.01,179.0,0.06]
[1755614909054,67.10014036,179.01,179.0,0.06]
[1755614909537,80.69573437,179.01,179.0,0.06]
[1755614909929,67.10014036,179.01,179.0,0.06]
[1755614910254,66.42014036,179.01,179.0,0.06]
[1755614910419,62.87867597,179.01,179.0,0.06]
[1755614910619,0.03,179.06,179.0,0.06]
[1755614910860,17.45867597,179.01,179.0,0.06]
[1755614911023,88.71867597,179.01,179.0,0.06]
[1755614911233,63.39867597,179.01,179.0,0.06]
[1755614911534,66.93998741,179.01,179.0,0.06]
[1755614911935,62.71867597,179.01,179.0,0.06]
[1755614912126,66.9390766,179.01,179.0,0.06]
[1755614912636,26.0,178.98,178.96,0.06]
[1755614912835,62.69867597,178.97,178.96,0.06]
[1755614913449,26.0,179.01,178.96,0.73]
[1755614913627,43.45867597,178.97,178.96,0.06]
[1755614913956,88.59867597,178.97,178.96,0.06]
[1755614914385,71.14,178.97,178.96,0.06]
[1755614914668,88.59867597,178.97,178.96,0.06]
[1755614914870,71.14,178.97,178.96,0.06]
[1755614915169,88.59867597,178.97,178.96,0.06]
[1755614915673,92.1458391,178.97,178.96,0.06]
[1755614915834,92.14581097,178.97,178.96,0.06]
[1755614916239,92.14581097,178.97,178.94,0.06]
[1755614916464,3.54709819,178.96,178.94,0.06]
[1755614916656,71.14,178.97,178.94,0.06]
[1755614916657,62.57867597,178.95,178.94,0.06]
[1755614916864,45.12,178.95,178.94,0.73]
[1755614917363,45.12,178.95,178.94,18.18867597]
[1755614917738,45.12,178.97,178.94,18.18867597]
[1755614918076,45.12,178.98,178.96,17.45867597]
[1755614918368,45.12,178.98,178.94,17.51867597]
[1755614918556,0.03,179.06,178.97,18.12867597]
[1755614918758,0.03,179.06,179.05,17.45867597]
[1755614919060,45.15,179.06,179.03,17.45867597]
[1755614919240,45.15,179.06,179.04,17.45867597]
[1755614919440,45.15,179.06,179.05,0.67]
[1755614920063,45.15,179.06,178.97,13.59559401]
[1755614920259,45.15,179.06,179.0,0.67]
[1755614920553,45.15,179.06,179.02,17.45867597]
[1755614920854,45.15,179.06,179.03,0.67]
[1755614921049,0.03,179.06,179.04,17.45867597]
[1755614921243,45.12,179.05,179.04,0.67]
[1755614921549,45.12,179.05,179.01,18.12867597]
[1755614921741,17.45867597,179.02,178.97,0.67]
[1755614921942,17.45867597,178.98,178.94,0.73]
[1755614922175,45.12,178.97,178.95,0.67]
[1755614922472,45.12,178.96,178.94,17.51867597]
[1755614922770,17.45867597,179.01,178.95,17.45867597]
[1755614922948,45.12,179.0,178.94,0.06]
[1755614923149,45.12,179.0,178.98,17.45867597]
[1755614923361,45.12,179.0,178.99,0.67]
[1755614923567,45.12,179.0,178.95,0.67]
[1755614923745,45.12,179.0,178.94,17.51867597]
[1755614923949,62.57867597,179.0,178.95,18.12867597]
[1755614924152,17.45867597,178.99,178.94,17.51867597]
[1755614924361,17.45867597,178.95,178.94,0.06]
[1755614924671,62.57867597,178.95,178.94,0.06]
[1755614925083,45.12,178.95,178.94,0.06]
[1755614925263,62.57867597,178.95,178.94,0.06]
[1755614925788,66.80886423,178.95,178.9,0.06]
[1755614925950,17.45867597,178.92,178.9,0.06]
[1755614926146,66.14886423,178.91,178.9,0.06]
[1755614926746,66.80886423,178.91,178.9,0.06]
[1755614926975,70.64365691,178.91,178.9,0.06]
[1755614927148,62.57867597,178.91,178.9,0.06]
[1755614927346,62.57867597,178.91,178.88,0.2]
[1755614927568,17.45867597,178.9,178.88,0.2]
[1755614927952,62.57867597,178.89,178.88,0.2]
[1755614928458,45.12,178.89,178.88,0.87]
[1755614928658,45.12,178.89,178.88,18.32867597]
[1755614929048,45.12,178.89,178.88,0.87]
[1755614929255,45.12,178.89,178.88,0.2]
[1755614929853,63.23867597,178.89,178.88,0.2]
[1755614930191,26.0,178.86,178.82,0.06]
[1755614930370,43.45867597,178.83,178.82,0.06]
[1755614930686,88.57867597,178.83,178.82,0.06]
[1755614930875,89.23867597,178.83,178.82,0.06]
[1755614931387,71.78,178.83,178.82,0.06]
[1755614931687,89.23867597,178.83,178.82,0.06]
[1755614931984,88.57867597,178.83,178.82,0.06]
[1755614932152,89.23867597,178.83,178.82,0.06]
[1755614932350,71.12,178.83,178.82,0.06]
[1755614932556,88.57867597,178.83,178.82,0.06]
[1755614933110,89.23867597,178.83,178.82,0.06]
[1755614934283,88.57867597,178.83,178.82,0.06]
[1755614935356,45.12,178.83,178.82,0.06]
[1755614935556,62.57867597,178.83,178.82,0.06]
[1755614935854,45.12,178.83,178.82,0.06]
[1755614936076,62.57867597,178.83,178.82,0.06]
[1755614936498,63.23867597,178.83,178.82,0.06]
[1755614936664,45.78,178.83,178.82,0.06]
[1755614936872,63.23867597,178.83,178.82,0.06]
[1755614937780,26.0,178.8,178.79,0.06]
[1755614937977,88.57867597,178.8,178.79,0.06]
[1755614938277,26.0,178.8,178.79,0.06]
[1755614938601,71.1,178.8,178.79,0.06]
[1755614938898,88.55867597,178.8,178.79,0.06]
[1755614939586,71.1,178.8,178.79,0.06]
[1755614939894,88.57867597,178.8,178.79,0.06]
[1755614940278,45.12,178.8,178.79,0.73]
[1755614940492,62.57867597,178.8,178.79,0.06]
[1755614941300,45.12,178.8,178.79,0.06]
[1755614941687,62.57867597,178.8,178.79,0.73]
[1755614941894,45.12,178.8,178.79,0.06]
[1755614942104,17.45867597,178.81,178.79,0.73]
[1755614942301,62.57867597,178.8,178.79,0.73]
[1755614942884,62.57867597,178.8,178.79,0.06]
[1755614944304,45.12,178.8,178.79,0.06]
[1755614944516,45.1,178.8,178.79,0.76]
[1755614945216,0.68,178.88,178.79,0.76]
[1755614945501,17.45867597,178.84,178.79,18.21867597]
[1755614945702,45.1,178.83,178.8,17.45867597]
[1755614945870,45.1,178.82,178.81,18.15867597]
[1755614946485,45.1,178.82,178.81,0.7]
[1755614947207,45.1,178.82,178.79,0.06]
[1755614947409,45.1,178.82,178.79,0.76]
[1755614948414,13.59559401,178.94,178.81,17.45867597]
[1755614948705,0.03,178.97,178.82,0.7]
[1755614948910,45.1,178.96,178.93,17.45867597]
[1755614949077,45.1,178.96,178.94,0.7]
[1755614949273,45.1,178.96,178.94,18.15867597]
[1755614949679,45.1,178.96,178.94,0.7]
[1755614949874,45.1,178.96,178.89,0.7]
[1755614949875,18.13867597,178.95,178.89,0.7]
[1755614950077,17.45867597,178.91,178.86,0.7]
[1755614950293,62.55867597,178.9,178.86,0.7]
[1755614950628,62.55867597,178.89,178.84,17.45867597]
[1755614950813,17.45867597,178.88,178.83,0.7]
[1755614950977,45.1,178.89,178.83,0.7]
[1755614951181,45.1,178.88,178.84,0.7]
[1755614951379,45.1,178.87,178.85,17.45867597]
[1755614951580,0.03,178.97,178.87,13.59559401]
[1755614951797,62.55867597,178.96,178.88,0.7]
[1755614952001,17.45867597,178.93,178.88,0.7]
[1755614952183,45.1,178.92,178.88,0.7]
[1755614952585,45.1,178.92,178.89,0.7]
[1755614953223,45.1,178.92,178.89,18.15867597]
[1755614953512,45.1,178.92,178.89,17.45867597]
[1755614953686,45.1,178.92,178.9,17.45867597]
[1755614953886,45.1,178.92,178.89,18.15867597]
[1755614954088,62.55867597,178.92,178.85,0.7]
[1755614954287,62.55867597,178.92,178.83,13.59559401]
[1755614954288,17.45867597,178.88,178.83,17.45867597]
[1755614954510,45.08,178.87,178.83,17.45867597]
[1755614955107,45.08,178.87,178.81,0.7]
[1755614955416,45.08,178.87,178.81,18.15867597]
[1755614955417,62.53867597,178.87,178.81,18.15867597]
[1755614955591,62.53867597,178.87,178.81,0.7]
[1755614955792,62.53867597,178.87,178.81,18.15867597]
[1755614955793,45.08,178.87,178.81,18.15867597]
[1755614955992,62.53867597,178.87,178.81,18.15867597]
[1755614956491,17.45867597,178.86,178.81,0.7]
[1755614956709,17.45867597,178.86,178.8,17.45867597]
[1755614957020,17.45867597,178.85,178.8,17.45867597]
[1755614957194,45.06,178.84,178.8,18.15867597]
[1755614957586,45.06,178.84,178.78,17.51867597]
[1755614957791,45.06,178.84,178.79,17.51867597]
[1755614958020,62.51867597,178.84,178.79,0.06]
[1755614958392,0.68,178.92,178.83,17.45867597]
[1755614958592,0.68,178.92,178.88,17.45867597]
[1755614958593,45.06,178.91,178.88,17.45867597]
[1755614958787,17.48867597,178.93,178.9,17.45867597]
[1755614958788,0.03,178.93,178.9,17.45867597]
[1755614958989,0.03,178.93,178.92,17.45867597]
[1755614959391,0.03,178.97,178.93,13.59559401]
[1755614959608,0.03,178.97,178.96,31.05426998]
[1755614959926,0.03,178.99,178.97,13.59559401]
[1755614960122,0.03,178.99,178.98,31.05426998]
[1755614960330,45.06,179.04,179.0,17.45867597]
[1755614960811,17.45867597,179.03,178.95,0.7]
[1755614961020,0.71,179.01,178.98,17.45867597]
[1755614961195,0.03,179.05,179.0,31.05426998]
[1755614961401,0.03,179.05,179.04,17.45867597]
[1755614961616,0.03,179.05,179.04,31.05426998]
[1755614961795,0.03,179.06,179.05,13.59559401]
[1755614962002,0.03,179.06,179.05,31.75426998]
[1755614962223,0.03,179.08,179.05,31.75426998]
[1755614962396,0.03,179.08,179.07,17.45867597]
[1755614962815,45.27,179.12,179.08,13.59559401]
[1755614962999,45.27,179.12,179.09,17.45867597]
[1755614964396,0.03,179.12,179.09,18.15867597]
[1755614964797,0.03,179.12,179.09,31.75426998]
[1755614965326,0.03,179.12,179.09,18.15867597]
[1755614966299,0.03,179.12,179.09,31.75426998]
[1755614966496,0.03,179.12,179.1,13.59559401]
[1755614966695,0.1,179.19,179.12,13.59559401]
[1755614966971,0.1,179.19,179.18,17.45867597]
[1755614968045,0.1,179.19,179.18,18.15867597]
[1755614968539,0.1,179.19,179.18,17.45867597]
[1755614968747,0.1,179.19,179.18,18.15867597]
[1755614969453,0.1,179.19,179.18,17.45867597]
[1755614970154,0.1,179.19,179.12,0.7]
[1755614970314,0.78,179.19,179.16,17.45867597]
[1755614970679,0.78,179.19,179.17,17.45867597]
[1755614970859,0.78,179.19,179.11,14.29559401]
[1755614971013,0.78,179.19,179.17,17.45867597]
[1755614971346,0.78,179.19,179.16,17.45867597]
[1755614971545,0.1,179.19,179.11,14.29559401]
[1755614971748,0.1,179.19,179.18,17.45867597]
[1755614972246,0.1,179.19,179.18,18.15867597]
[1755614972448,0.1,179.19,179.18,17.45867597]
[1755614973022,0.1,179.19,179.15,14.29559401]
[1755614973242,0.1,179.19,179.18,17.45867597]
[1755614973726,0.1,179.19,179.18,18.13867597]
[1755614974143,0.1,179.19,179.18,31.73426998]
[1755614974540,0.03,179.23,179.19,13.59559401]
[1755614974746,0.03,179.23,179.22,31.05426998]
[1755614975730,0.03,179.23,179.22,31.73426998]
[1755614977125,0.03,179.23,179.13,55.0]
[1755614977430,0.03,179.23,179.22,17.45867597]
[1755614977632,0.75,179.23,179.1,5.58320672]
[1755614977843,17.45867597,179.22,179.1,0.68]
[1755614978130,0.75,179.23,179.18,17.45867597]
[1755614978332,0.75,179.23,179.19,17.45867597]
[1755614978645,17.45867597,179.21,179.15,17.45867597]
[1755614978856,0.72,179.2,179.15,17.45867597]
[1755614979063,0.72,179.19,179.16,17.45867597]
[1755614979555,0.72,179.18,179.11,0.68]
[1755614979850,0.72,179.18,179.15,17.45867597]
[1755614980358,26.0,179.21,179.17,17.45867597]
[1755614980559,0.03,179.23,179.18,17.45867597]
[1755614980751,0.03,179.23,179.22,17.45867597]
[1755614981056,0.03,179.23,179.21,17.45867597]
[1755614981259,0.03,179.23,179.16,13.59559401]
[1755614981432,17.48867597,179.23,179.15,0.68]
[1755614981630,17.45867597,179.2,179.15,17.45867597]
[1755614981837,17.45867597,179.22,179.17,17.45867597]
[1755614982048,0.03,179.23,179.17,0.68]
[1755614982254,0.03,179.23,179.19,17.45867597]
[1755614982646,0.03,179.23,179.18,17.45867597]
[1755614983068,18.20867597,179.23,179.18,17.45867597]
[1755614983379,0.03,179.23,179.22,17.45867597]
[1755614983590,0.03,179.23,179.16,26.0]
[1755614983881,0.03,179.23,179.21,17.45867597]
[1755614984078,0.03,179.23,179.2,17.45867597]
[1755614984447,18.20867597,179.23,179.17,17.45867597]
[1755614984767,17.45867597,179.19,179.14,0.68]
[1755614984976,17.45867597,179.19,179.13,17.45867597]
[1755614985157,17.45867597,179.2,179.14,17.45867597]
[1755614985356,17.45867597,179.2,179.12,13.59559401]
[1755614985553,17.45867597,179.19,179.13,17.45867597]
[1755614985764,0.72,179.22,179.15,17.45867597]
[1755614985970,0.72,179.22,179.14,17.45867597]
[1755614986173,17.45867597,179.21,179.15,17.45867597]
[1755614986780,17.45867597,179.2,179.14,31.05426998]
[1755614986994,17.45867597,179.2,179.14,13.59559401]
[1755614987149,17.45867597,179.19,179.13,0.68]
[1755614987348,17.45867597,179.19,179.14,17.45867597]
[1755614987575,17.45867597,179.2,179.14,18.13867597]
[1755614987886,17.45867597,179.2,179.14,17.45867597]
[1755614988067,17.45867597,179.19,179.14,17.45867597]
[1755614988268,0.72,179.18,179.12,13.59559401]
[1755614988494,45.01,179.23,179.11,26.68]
[1755614988495,17.45867597,179.17,179.11,0.68]
[1755614988667,17.45867597,179.18,179.12,17.45867597]
[1755614988988,17.45867597,179.17,179.12,17.45867597]
[1755614989174,0.72,179.2,179.12,18.13867597]
[1755614989689,17.45867597,179.19,179.13,17.45867597]
[1755614989865,17.45867597,179.18,179.12,18.13867597]
[1755614990079,17.45867597,179.15,179.1,0.06]
[1755614990584,44.98,179.17,179.12,17.45867597]
[1755614990761,62.43867597,179.17,179.12,17.45867597]
[1755614990961,62.43867597,179.17,179.12,18.13867597]
[1755614991264,44.98,179.17,179.14,17.45867597]
[1755614991782,44.98,179.17,179.16,17.45867597]
[1755614991986,17.45867597,179.21,179.16,17.45867597]
[1755614992362,18.17867597,179.21,179.16,17.45867597]
[1755614992752,62.43867597,179.22,179.16,18.13867597]
[1755614992978,0.03,179.2,179.18,17.45867597]
[1755614993157,0.03,179.2,179.17,17.45867597]
[1755614993362,0.03,179.2,179.17,18.13867597]
[1755614995717,0.03,179.2,179.19,17.45867597]
[1755614995900,0.03,179.2,179.19,31.05426998]
[1755614996073,0.03,179.2,179.19,31.73426998]
[1755614996601,0.03,179.2,179.16,13.59559401]
[1755614996900,0.03,179.2,179.16,31.05426998]
[1755614997270,0.03,179.2,179.16,31.73426998]
[1755614997697,0.03,179.2,179.19,31.05426998]
[1755614998197,0.03,179.2,179.19,31.73426998]
[1755614998791,0.03,179.2,179.19,13.59559401]
[1755614999306,0.03,179.2,179.18,31.05426998]
[1755615000083,0.03,179.2,179.19,31.73426998]
[1755615000411,0.03,179.2,179.19,13.59559401]
[1755615000795,0.75,179.2,179.12,0.06]
[1755615001091,0.03,179.2,179.16,13.59559401]
[1755615001295,0.03,179.2,179.12,13.65559401]
[1755615001296,0.03,179.2,179.17,31.05426998]
[1755615001599,0.03,179.2,179.19,31.05426998]
[1755615002276,0.03,179.2,179.19,31.73426998]
[1755615002982,0.03,179.2,179.19,37.31493854]
[1755615003184,0.03,179.2,179.19,31.73426998]
[1755615003404,0.03,179.2,179.19,14.27559401]
[1755615003718,0.03,179.2,179.19,13.59559401]
[1755615003881,0.03,179.2,179.19,31.05426998]
[1755615004505,0.03,179.2,179.19,31.77426998]
[1755615004875,0.03,179.2,179.19,13.59559401]
[1755615005196,0.03,179.2,179.17,13.59559401]
[1755615005589,0.75,179.2,179.16,13.59559401]
[1755615005790,0.03,179.2,179.16,13.59559401]
[1755615006100,18.17867597,179.19,179.14,13.59559401]
[1755615006506,0.03,179.2,179.18,31.05426998]
[1755615006673,0.03,179.2,179.19,31.05426998]
[1755615006873,0.75,179.2,179.16,13.59559401]
[1755615007095,0.03,179.2,179.16,13.59559401]
[1755615007281,0.03,179.2,179.13,13.65559401]
[1755615007483,0.03,179.2,179.16,13.59559401]
[1755615008004,18.20867597,179.2,179.14,17.45867597]
[1755615008240,0.03,179.2,179.17,13.59559401]
[1755615008402,0.03,179.2,179.18,17.45867597]
[1755615008892,0.03,179.2,179.17,13.59559401]
[1755615009090,0.03,179.2,179.19,17.45867597]
[1755615009292,0.03,179.2,179.19,31.05426998]
[1755615009490,0.03,179.2,179.19,31.77426998]
[1755615009695,0.03,179.2,179.19,40.31559401]
[1755615009892,0.03,179.2,179.19,31.77426998]
[1755615010107,0.03,179.2,179.19,31.05426998]
[1755615010412,0.03,179.2,179.19,31.77426998]
[1755615010820,0.03,179.2,179.19,31.05426998]
[1755615011121,0.03,179.2,179.15,45.0]
[1755615011122,17.48867597,179.2,179.15,45.0]
[1755615011419,0.03,179.2,179.16,13.59559401]
[1755615011621,17.45867597,179.18,179.15,0.06]
[1755615011783,18.17867597,179.19,179.15,0.06]
[1755615012001,18.17867597,179.18,179.15,0.06]
[1755615012202,0.75,179.2,179.15,0.06]
[1755615012539,18.17867597,179.19,179.16,13.59559401]
[1755615012708,0.72,179.18,179.15,0.06]
[1755615012905,18.17867597,179.17,179.15,0.06]
[1755615013310,17.45867597,179.17,179.15,0.06]
[1755615013519,18.17867597,179.16,179.15,0.06]
[1755615014034,0.72,179.16,179.15,0.06]
[1755615014215,43.45867597,179.18,179.15,0.06]
[1755615014534,0.72,179.16,179.15,0.06]
[1755615015103,18.17867597,179.16,179.15,0.06]
[1755615015503,0.03,179.2,179.15,0.78]
[1755615015707,26.0,179.19,179.15,0.06]
[1755615015898,26.0,179.19,179.16,13.59559401]
[1755615016105,26.72,179.19,179.16,13.59559401]
[1755615016340,26.72,179.19,179.15,13.65559401]
[1755615016522,26.0,179.19,179.15,31.11426998]
[1755615016728,0.03,179.2,179.17,31.05426998]
[1755615016904,0.03,179.2,179.18,17.45867597]
[1755615017237,0.03,179.2,179.19,13.59559401]
[1755615017439,0.03,179.2,179.17,13.59559401]
[1755615017746,0.75,179.2,179.17,13.59559401]
[1755615018333,0.03,179.2,179.17,13.59559401]
[1755615018526,0.03,179.2,179.18,17.45867597]
[1755615018839,0.03,179.2,179.19,31.05426998]
[1755615019337,0.03,179.2,179.19,57.77426998]
[1755615020250,0.03,179.2,179.19,39.59559401]
[1755615020411,0.03,179.2,179.15,0.78]
[1755615020743,0.75,179.2,179.16,13.59559401]
[1755615021843,0.03,179.2,179.16,31.05426998]
[1755615022044,18.17867597,179.19,179.16,26.0]
[1755615022242,17.48867597,179.2,179.16,26.0]
[1755615022441,0.72,179.19,179.16,26.0]
[1755615022742,0.72,179.19,179.15,0.06]
[1755615022743,0.72,179.18,179.15,0.06]
[1755615023037,18.17867597,179.19,179.15,0.06]
[1755615023207,0.03,179.2,179.15,0.06]
[1755615023208,17.45867597,179.17,179.15,0.06]
[1755615023410,18.17867597,179.16,179.15,0.06]
[1755615023916,0.72,179.16,179.15,0.06]
[1755615024239,18.17867597,179.19,179.15,0.06]
[1755615024537,44.93,179.2,179.15,0.06]
[1755615024734,0.03,179.2,179.19,24.71692662]
[1755615025244,0.03,179.2,179.19,13.59559401]
[1755615025431,0.03,179.2,179.19,24.71692662]
[1755615025627,0.03,179.2,179.19,25.43692662]
[1755615025842,0.03,179.22,179.2,13.59559401]
[1755615026020,0.03,179.22,179.21,24.71692662]
[1755615026225,0.03,179.22,179.21,25.43692662]
[1755615026613,0.03,179.22,179.21,31.01697237]